bitfinex-derivatives/quotes_SOLF0:USTF0_20250207
["timestamp","ask_amount","ask_price","bid_price","bid_amount"]
[1738943612985,35.2827269,198.95,198.85,5.0266]
[1738943613181,35.2827269,198.89,198.81,1.00598561]
[1738943613685,35.2827269,198.85,198.81,1.00598561]
[1738943613880,35.2827269,198.89,198.81,1.00598561]
[1738943614083,0.03676301,198.87,198.83,0.03696366]
[1738943614587,40.4227269,198.94,198.74,35.2827269]
[1738943614780,35.2827269,198.9,198.7,35.2827269]
[1738943615082,0.03721594,198.87,198.83,0.0326224]
[1738943615277,35.2827269,198.94,198.76,35.2827269]
[1738943615479,35.2827269,198.94,198.77,1.5793]
[1738943615674,0.03691972,198.87,198.83,0.03397779]
[1738943616076,35.2827269,198.86,198.71,1.5635]
[1738943616277,35.2827269,198.82,198.71,1.5635]
[1738943616474,35.2827269,198.86,198.83,0.03392555]
[1738943616874,35.2827269,198.9,198.77,5.0286]
[1738943617075,35.2827269,198.94,198.76,35.2827269]
[1738943617285,0.03649956,198.86,198.83,0.03192795]
[1738943617487,1.6465,198.99,198.84,35.2827269]
[1738943617880,1.6465,198.99,198.83,0.03192795]
[1738943618078,35.2827269,199.04,198.84,35.2827269]
[1738943618285,35.2827269,199.04,198.85,1.5082]
[1738943618579,35.2827269,198.96,198.85,1.5082]
[1738943618777,35.31588459,198.96,198.93,0.03599969]
[1738943618974,5.0244,198.94,198.82,5.0272]
[1738943619175,35.2827269,198.9,198.77,3.0806]
[1738943619885,35.2827269,198.9,198.77,1.5013]
[1738943620283,35.2827269,198.86,198.66,35.2827269]
[1738943620482,35.2827269,198.82,198.67,1.00669451]
[1738943620880,35.2827269,198.82,198.74,0.03275498]
[1738943621079,1.4893,198.89,198.74,0.03275498]
[1738943621391,5.0234,198.98,198.86,5.0262]
[1738943621588,36.7766269,199.0,198.81,35.2827269]
[1738943622186,36.7766269,199.0,198.77,35.2827269]
[1738943622381,35.2827269,198.94,198.73,35.2827269]
[1738943622587,35.2827269,198.81,198.68,1.6105]
[1738943622784,35.2827269,198.81,198.7,5.0302]
[1738943622990,35.2827269,198.72,198.67,1.00669451]
[1738943623290,18.43924074,198.72,198.62,5.0322]
[1738943623588,35.31553665,198.76,198.54,3.1608]
[1738943623792,5.0286,198.78,198.68,0.03280404]
[1738943624085,35.2827269,198.71,198.54,3.1608]
[1738943624387,35.2827269,198.71,198.55,1.00730294]
[1738943625083,0.17846196,198.71,198.61,0.03448136]
[1738943625283,0.0333772,198.65,198.62,1.00694794]
[1738943626282,35.2827269,198.63,198.61,0.03448136]
[1738943626487,40.3150269,198.63,198.44,35.2827269]
[1738943626690,35.2827269,198.63,198.44,35.2827269]
[1738943626986,35.2827269,198.63,198.49,5.0356]
[1738943627186,35.2827269,198.63,198.44,35.2827269]
[1738943627387,35.2827269,198.67,198.48,35.2827269]
[1738943627787,0.03638688,198.55,198.52,0.03574075]
[1738943627992,35.2827269,198.63,198.54,5.0345]
[1738943628282,0.03753985,198.55,198.44,35.2827269]
[1738943628489,0.03753985,198.55,198.42,3.1086]
[1738943628685,35.2827269,198.59,198.42,3.1086]
[1738943628993,35.32061913,198.5,198.48,0.03379878]
[1738943629293,35.32061913,198.5,198.31,3.2479]
[1738943629589,35.2827269,198.5,198.41,5.0376]
[1738943629785,35.2827269,198.54,198.31,3.2479]
[1738943630088,35.2827269,198.5,198.31,3.2479]
[1738943630489,0.0337748,198.47,198.43,0.03824214]
[1738943630682,0.0337748,198.47,198.45,5.0366]
[1738943631292,0.0337748,198.47,198.43,0.03824214]
[1738943631490,35.26220224,198.5,198.43,0.03824214]
[1738943631684,35.26220224,198.5,198.3,35.2827269]
[1738943632995,0.03669531,198.45,198.41,0.03432207]
[1738943634887,35.2827269,198.43,198.41,0.03432207]
[1738943635086,35.2827269,198.43,198.24,1.6185]
[1738943635791,35.2827269,198.39,198.24,1.6185]
[1738943636291,5.0386,198.38,198.25,5.0417]
[1738943636499,35.2827269,198.35,198.25,5.0417]
[1738943636688,35.2827269,198.35,198.29,5.0407]
[1738943636999,35.2827269,198.4,198.24,35.2827269]
[1738943637195,1.5481,198.43,198.24,34.87862824]
[1738943637499,35.2827269,198.4,198.21,1.4999]
[1738943637697,0.03619043,198.35,198.32,0.03415381]
[1738943638288,0.03619043,198.35,198.21,1.4999]
[1738943638493,35.2827269,198.31,198.21,1.4999]
[1738943638901,35.2827269,198.31,198.26,5.0416]
[1738943639095,35.2827269,198.35,198.21,1.4999]
[1738943639291,35.2827269,198.4,198.21,1.4999]
[1738943639498,35.2827269,198.4,198.24,35.2827269]
[1738943639694,0.03283935,198.3,198.26,0.03371454]
[1738943639896,123.3815513,198.42,198.26,0.03371454]
[1738943640198,123.3815513,198.42,198.33,5.0397]
[1738943640398,123.3815513,198.42,198.24,35.2827269]
[1738943640604,123.3815513,198.42,198.28,35.2827269]
[1738943640799,35.2827269,198.4,198.21,1.4999]
[1738943641107,35.2827269,198.36,198.21,1.4999]
[1738943641297,5.0394,198.35,198.33,0.03609478]
[1738943641600,41.3827269,198.34,198.12,35.2827269]
[1738943641799,35.2827269,198.27,198.2,5.043]
[1738943642003,35.2827269,198.27,198.08,35.2827269]
[1738943642392,35.2827269,198.27,198.09,1.6255]
[1738943642798,9.614e-05,198.19,198.17,35.2827269]
[1738943642999,9.614e-05,198.19,198.17,40.3266269]
[1738943643195,9.614e-05,198.19,198.17,5.0439]
[1738943645995,9.614e-05,198.19,198.16,0.03841133]
[1738943646199,9.614e-05,198.19,198.17,5.0438]
[1738943647505,6.06009614,198.19,197.95,35.2827269]
[1738943647705,35.2827269,198.15,198.02,1.5144]
[1738943647912,35.2827269,198.1,198.04,5.0471]
[1738943648107,35.2827269,198.1,198.02,1.5144]
[1738943648404,35.2627269,198.1,198.02,1.5144]
[1738943648599,35.2627269,198.1,198.05,5.0469]
[1738943648805,0.03629168,198.08,198.04,0.03461415]
[1738943649205,35.2827269,198.14,198.0,20.13027022]
[1738943649401,0.03326719,198.08,198.04,0.03342901]
[1738943649603,0.03326719,198.08,198.06,5.0464]
[1738943650198,0.03326719,198.08,198.04,0.03342901]
[1738943650600,35.2827269,198.06,198.04,0.03342901]
[1738943650802,35.2827269,198.06,197.94,1.53]
[1738943651304,1.5568,198.07,197.94,1.53]
[1738943651305,35.2827269,198.02,197.97,5.0488]
[1738943651505,35.2827269,197.98,197.89,3.2002]
[1738943651705,35.2827269,197.94,197.88,39.69472421]
[1738943651905,35.2827269,197.94,197.92,0.03385394]
[1738943652106,35.2827269,197.94,197.88,39.69472421]
[1738943652401,35.2827269,197.9,197.86,53.6807206]
[1738943652608,70.5654538,197.9,197.86,53.6807206]
[1738943652807,70.5654538,197.9,197.72,3.1669]
[1738943653001,35.2827269,197.85,197.72,3.1669]
[1738943653198,0.06199363,197.85,197.82,9.12250073]
[1738943653407,35.2827269,197.83,197.8,55.95273488]
[1738943653606,35.2827269,197.81,197.8,44.96463488]
[1738943653904,35.2827269,197.81,197.78,157.25341039]
[1738943654205,35.2827269,197.81,197.78,60.06419115]
[1738943654404,5.0533,197.8,197.78,51.75939115]
[1738943654605,20.0633,197.8,197.78,24.42579115]
[1738943655001,21.07442234,197.8,197.78,24.42579115]
[1738943655305,36.29384924,197.8,197.78,24.42579115]
[1738943655699,36.29384924,197.8,197.73,199.27494005]
[1738943655902,35.2827269,197.76,197.75,132.16275636]
[1738943656205,41.2827269,197.76,197.75,124.40795636]
[1738943656415,41.2827269,197.76,197.75,124.37452735]
[1738943657115,41.2827269,197.76,197.74,0.0331935]
[1738943657617,41.2827269,197.76,197.56,3.1669]
[1738943657810,35.2827269,197.7,197.56,3.1669]
[1738943658003,35.2827269,197.66,197.64,0.03310143]
[1738943658209,35.2827269,197.7,197.64,0.03310143]
[1738943658506,3.692e-05,197.65,197.62,35.2827269]
[1738943658807,142.07777797,197.66,197.65,0.0351749]
[1738943659007,46.05190636,197.75,197.65,35.3179018]
[1738943659208,27.55100636,197.75,197.74,5.0548]
[1738943659412,22.57860636,197.75,197.64,35.2827269]
[1738943659617,22.57860636,197.75,197.63,1.5668]
[1738943659912,22.57860636,197.75,197.73,0.03761011]
[1738943660102,22.57860636,197.75,197.63,1.5668]
[1738943660306,22.57860636,197.75,197.56,38.4496269]
[1738943660608,22.57860636,197.75,197.72,0.03200687]
[1738943661109,35.2827269,197.8,197.56,38.4496269]
[1738943661312,0.03858265,197.75,197.72,0.03246224]
[1738943661707,35.2827269,197.76,197.56,38.4496269]
[1738943661911,0.03190212,197.75,197.72,0.03768239]
[1738943662306,35.2827269,197.8,197.64,35.2827269]
[1738943662512,0.03774496,197.75,197.72,0.03291837]
[1738943663111,5.0554,197.72,197.59,5.0584]
[1738943663410,0.03774496,197.75,197.48,35.2827269]
[1738943663411,35.2827269,197.63,197.48,35.2827269]
[1738943663605,35.2827269,197.59,197.45,1.5389]
[1738943664010,1.6253,197.69,197.48,35.2827269]
[1738943664321,35.2827269,197.71,197.56,35.2827269]
[1738943664511,35.2827269,197.75,197.57,1.5092]
[1738943664808,35.2827269,197.71,197.62,0.03188729]
[1738943665013,1.01142914,197.74,197.62,0.03188729]
[1738943665215,35.2827269,197.63,197.51,1.5092]
[1738943665415,35.2827269,197.59,197.46,1.6231]
[1738943666017,35.63615104,197.55,197.42,1.5092]
[1738943666315,0.0382635,197.54,197.51,0.03468508]
[1738943666509,0.0382635,197.54,197.42,1.5092]
[1738943666712,35.63615104,197.51,197.47,0.03826319]
[1738943667111,35.63615104,197.5,197.26,42.36921361]
[1738943667312,35.63615104,197.42,197.27,1.0138389]
[1738943667613,35.63615104,197.5,197.33,35.63615104]
[1738943667814,35.63615104,197.5,197.34,1.6103]
[1738943668412,0.03847189,197.44,197.4,0.03521096]
[1738943668716,0.03847189,197.44,197.42,5.0629]
[1738943669920,0.03847189,197.44,197.4,0.03521096]
[1738943670216,35.63615104,197.42,197.4,0.03521096]
[1738943670809,0.03847189,197.44,197.4,0.03521096]
[1738943671014,0.03847189,197.44,197.42,5.0629]
[1738943671520,0.03847189,197.44,197.4,0.03521096]
[1738943671723,35.63615104,197.42,197.4,0.03521096]
[1738943671918,35.63615104,197.42,197.28,1.5006]
[1738943672122,35.63615104,197.37,197.28,1.5006]
[1738943672319,1.591,197.49,197.3,35.63615104]
[1738943672519,6.6523,197.49,197.35,5.0646]
[1738943672817,35.63615104,197.37,197.28,1.5006]
[1738943673018,35.63615104,197.33,197.27,1.0138389]
[1738943673224,35.63615104,197.33,197.29,5.0663]
[1738943673416,35.63615104,197.33,197.28,0.03449004]
[1738943674010,35.66973009,197.33,197.28,0.03449004]
[1738943674521,35.63615104,197.29,197.28,0.03449004]
[1738943674721,35.66973009,197.33,197.28,0.03449004]
[1738943675310,18.70720938,197.33,197.28,0.03449004]
[1738943675716,35.63615104,197.37,197.28,0.03449004]
[1738943675921,35.63615104,197.37,197.31,5.0658]
[1738943676112,35.63615104,197.37,197.28,0.03449004]
[1738943676313,35.63615104,197.37,197.18,35.63615104]
[1738943676519,35.63615104,197.33,197.17,1.6284]
[1738943676819,35.63615104,197.33,197.31,0.03693049]
[1738943677016,35.63615104,197.33,197.17,1.6284]
[1738943677216,35.63615104,197.26,197.06,35.63615104]
[1738943677421,35.63615104,197.22,197.17,5.0694]
[1738943677625,35.63615104,197.22,197.05,6.7270267]
[1738943677924,0.03196468,197.18,197.14,0.03295786]
[1738943678122,0.03196468,197.18,197.17,5.0694]
[1738943678324,35.63615104,197.3,197.1,35.63615104]
[1738943678523,35.63615104,197.34,197.2,5.0687]
[1738943678823,35.63615104,197.31,197.15,1.4929]
[1738943679023,35.63615104,197.27,197.06,37.28215104]
[1738943679225,35.63615104,197.27,197.2,5.0686]
[1738943679422,35.63615104,197.27,197.07,1.4929]
[1738943679622,35.63615104,197.3,197.15,0.03821424]
[1738943679623,0.03442747,197.18,197.15,0.03821424]
[1738943679823,35.63615104,197.3,197.15,0.03821424]
[1738943680031,35.63615104,197.34,197.18,35.63615104]
[1738943680227,37.20765104,197.42,197.22,35.63615104]
[1738943680531,35.63615104,197.42,197.22,35.63615104]
[1738943680726,41.93615104,197.46,197.3,35.63615104]
[1738943680925,0.03587064,197.34,197.31,1.4929]
[1738943681325,35.63615104,197.5,197.31,1.4929]
[1738943681727,35.63615104,197.42,197.31,1.4929]
[1738943681932,35.63615104,197.46,197.31,1.4929]
[1738943682228,35.63615104,197.46,197.4,5.0634]
[1738943682429,35.63615104,197.54,197.34,35.63615104]
[1738943682623,35.63615104,197.5,197.37,0.03474834]
[1738943682819,35.63615104,197.5,197.31,1.4929]
[1738943682820,35.63615104,197.46,197.31,1.4929]
[1738943683030,35.63615104,197.42,197.31,1.4929]
[1738943683530,35.63615104,197.34,197.24,1.6481]
[1738943683727,35.63615104,197.3,197.14,35.63615104]
[1738943683922,35.63615104,197.34,197.14,35.63615104]
[1738943684229,35.63615104,197.3,197.27,0.03248651]
[1738943684429,0.03804923,197.26,197.16,5.0695]
[1738943684730,0.03804923,197.26,197.13,3.2602]
[1738943684731,35.63615104,197.27,197.13,3.2602]
[1738943684928,35.63615104,197.27,197.17,5.0694]
[1738943685123,0.03639744,197.23,197.19,0.0374091]
[1738943685328,71.27230208,197.2,197.11,27.06184978]
[1738943685528,35.63615104,197.14,197.11,27.06184978]
[1738943685821,35.63615104,197.14,196.99,64.51189002]
[1738943685822,35.63615104,197.14,197.01,6.82696801]
[1738943686023,35.63615104,197.07,197.04,5.0726]
[1738943686226,35.63615104,197.07,197.01,6.82696801]
[1738943686628,35.63615104,197.07,197.04,0.0372615]
[1738943686928,35.63615104,197.07,197.01,6.82696801]
[1738943687128,35.63615104,197.02,197.01,6.82696801]
[1738943687324,35.63615104,197.02,196.99,64.51189002]
[1738943687531,35.63615104,197.02,196.98,189.27699559]
[1738943687532,35.63615104,197.0,196.98,145.99667224]
[1738943687834,35.63615104,197.02,196.98,58.42794344]
[1738943688234,0.0323595,197.01,196.98,58.42794344]
[1738943688933,129.99783591,197.78,196.98,58.42794344]
[1738943688934,35.63615104,197.12,196.98,58.42794344]
[1738943689136,35.63615104,197.16,196.98,58.42794344]
[1738943689436,35.63615104,197.24,197.05,35.63615104]
[1738943689933,35.63615104,197.3,197.09,35.63615104]
[1738943690137,35.63615104,197.3,197.21,5.0682]
[1738943690337,35.63615104,197.34,197.13,35.63615104]
[1738943690533,35.63615104,197.4,197.19,35.63615104]
[1738943690534,42.55615104,197.4,197.19,35.63615104]
[1738943690731,35.63615104,197.36,197.15,35.63615104]
[1738943690932,0.03610167,197.25,197.15,35.63615104]
[1738943691239,0.03610167,197.25,197.24,0.03346115]
[1738943691434,35.63615104,197.32,197.24,0.03346115]
[1738943691731,5.0672,197.26,197.14,1.5117]
[1738943691939,35.63615104,197.24,197.1,3.2942]
[1738943692133,35.63615104,197.3,197.1,3.2942]
[1738943692435,0.03872338,197.19,197.18,0.03505941]
[1738943692836,35.63615104,197.34,197.15,35.63615104]
[1738943693032,35.63615104,197.34,197.11,35.63615104]
[1738943693630,1.4989,197.39,197.18,35.63615104]
[1738943693832,5.0647,197.36,197.24,5.0675]
[1738943694035,35.63615104,197.25,196.98,347.42794344]
[1738943694237,35.63615104,197.17,197.02,1.6165]
[1738943694434,35.63615104,197.17,197.1,0.03786959]
[1738943694642,35.63615104,197.2,197.1,0.03786959]
[1738943694932,9.2127,197.24,197.1,0.03786959]
[1738943694933,0.03666202,197.11,197.1,0.03786959]
[1738943695147,35.63615104,197.3,197.1,35.67402063]
[1738943695339,35.63615104,197.3,197.11,1.5231]
[1738943695734,35.63615104,197.3,197.18,0.03769579]
[1738943696132,35.63615104,197.3,197.14,35.63615104]
[1738943696339,35.63615104,197.34,197.15,1.6165]
[1738943696634,0.03247303,197.24,197.2,0.03859821]
[1738943696838,35.63615104,197.34,197.2,0.03859821]
[1738943697038,35.63615104,197.34,197.15,1.6165]
[1738943697441,35.63615104,197.34,197.18,35.63615104]
[1738943697739,129.99783591,197.38,197.15,1.6165]
[1738943697740,165.63398695,197.38,197.22,35.63615104]
[1738943697932,129.99783591,197.38,197.24,0.0363517]
[1738943698133,35.63615104,197.42,197.32,5.0655]
[1738943698333,35.63615104,197.42,197.26,35.63615104]
[1738943698738,35.63615104,197.42,197.23,1.5779]
[1738943699136,35.63615104,197.38,197.23,1.5779]
[1738943699334,35.63615104,197.33,197.31,0.03209743]
[1738943699538,35.63615104,197.33,197.15,1.6165]
[1738943699733,35.63615104,197.33,197.16,1.5197]
[1738943699938,35.63615104,197.33,197.18,35.63615104]
[1738943700438,35.63615104,197.29,197.19,5.0688]
[1738943700738,35.63615104,197.25,197.15,1.6165]
[1738943700943,5.0677,197.24,197.22,0.03779628]
[1738943701345,35.63615104,197.25,197.07,1.5197]
[1738943701639,40.70515104,197.19,197.07,1.5197]
[1738943701943,35.63615104,197.19,197.14,0.03211942]
[1738943702342,35.67436688,197.15,197.14,0.03211942]
[1738943702545,5.0706,197.13,197.03,1.6422]
[1738943702843,0.03821584,197.15,197.03,1.6422]
[1738943703041,35.63615104,197.23,197.11,5.071]
[1738943703246,35.63615104,197.19,197.03,1.6422]
[1738943703641,100.38,197.27,197.09,35.63615104]
[1738943703835,35.63615104,197.33,197.13,35.63615104]
[1738943704043,0.03199438,197.2,197.14,1.5373]
[1738943704445,35.63615104,197.33,197.21,0.03784123]
[1738943704646,35.63615104,197.29,197.14,1.5373]
[1738943705048,35.66966537,197.29,197.25,0.03583299]
[1738943705243,5.067,197.27,197.16,5.0697]
[1738943705540,35.63615104,197.37,197.17,35.63615104]
[1738943705750,165.63398695,197.41,197.21,35.63615104]
[1738943706046,1.01337657,197.36,197.22,1.4967]
[1738943706546,0.03782911,197.31,197.27,0.0371068]
[1738943707950,35.63615104,197.29,197.27,0.0371068]
[1738943708152,35.63615104,197.3,197.26,171.17103645]
[1738943708347,35.63615104,197.3,197.26,171.14693645]
[1738943708842,35.63615104,197.34,197.26,171.14693645]
[1738943709050,1.01337657,197.36,197.26,171.14693645]
[1738943709452,0.03371619,197.32,197.28,0.0384814]
[1738943709748,1.01337657,197.36,197.28,0.0384814]
[1738943709955,107.19354032,197.44,197.28,1.5525814]
[1738943710152,35.63615104,197.4,197.28,0.0384814]
[1738943710347,40.69985104,197.4,197.27,57.133596]
[1738943710550,35.63615104,197.36,197.27,55.637796]
[1738943710744,5.0666,197.29,197.27,55.637796]
[1738943710942,5.0666,197.29,197.27,47.770096]
[1738943711142,35.63615104,197.31,197.11,1.5922]
[1738943711353,0.03560727,197.33,197.26,0.03800243]
[1738943711544,35.63615104,197.31,197.12,1.5141]
[1738943711748,0.03720904,197.31,197.28,0.03833244]
[1738943711949,35.63615104,197.4,197.28,0.03833244]
[1738943712154,0.03493741,197.31,197.24,35.63615104]
[1738943712349,0.03493741,197.31,197.3,5.0661]
[1738943712550,35.63615104,197.4,197.26,0.03361247]
[1738943712748,0.03774058,197.32,197.26,0.03361247]
[1738943712949,0.03774058,197.32,197.25,1.6251]
[1738943713151,0.03774058,197.32,197.27,0.03612466]
[1738943713347,100.38,197.42,197.3,35.63615104]
[1738943713546,100.38,197.42,197.31,5.0658]
[1738943713853,100.38,197.42,197.26,1.6473]
[1738943714557,0.03283044,197.36,197.32,0.03750827]
[1738943714947,7.52,197.57,197.32,35.67365931]
[1738943715152,1.0127095,197.49,197.4,35.63615104]
[1738943715352,1.0127095,197.49,197.44,35.63615104]
[1738943715657,5.0586,197.6,197.44,35.63615104]
[1738943715952,1.0122482,197.58,197.52,35.63615104]
[1738943716186,35.63615104,197.74,197.56,35.63615104]
[1738943716359,35.63615104,197.7,197.5,35.67125549]
[1738943716559,1.685e-05,197.57,197.5,35.63615104]
[1738943716852,1.01168496,197.69,197.5,324.63615104]
[1738943717261,35.63615104,197.66,197.5,35.63615104]
[1738943717570,1.01168496,197.69,197.53,35.63615104]
[1738943717853,1.064e-05,197.6,197.59,5.0587]
[1738943718253,1.0118897,197.65,197.58,1.6454]
[1738943718495,1.0118897,197.65,197.61,35.63615104]
[1738943718656,35.63615104,197.8,197.61,35.63615104]
[1738943718957,1.01117346,197.79,197.73,35.63615104]
[1738943719159,7.346e-05,197.79,197.73,35.63615104]
[1738943719453,5.0488,197.98,197.88,5.051]
[1738943719663,1.01025407,197.97,197.85,35.63615104]
[1738943719854,1.01025407,197.97,197.81,35.63615104]
[1738943720051,1.01025407,197.97,197.85,35.63615104]
[1738943720249,0.03563195,197.93,197.89,0.03758228]
[1738943720449,1.01050929,197.92,197.89,0.03758228]
[1738943720954,6.035e-05,197.91,197.89,0.03758228]
[1738943721851,6.035e-05,197.91,197.73,35.63615104]
[1738943722262,6.035e-05,197.91,197.8,5.0531]
[1738943722460,6.035e-05,197.91,197.77,35.63615104]
[1738943722761,35.63615104,197.84,197.69,35.63615104]
[1738943722967,35.63615104,197.9,197.61,290.6168]
[1738943722968,35.63615104,197.8,197.61,37.25295104]
[1738943723161,1.01117346,197.79,197.61,37.25295104]
[1738943723361,5.055,197.74,197.69,0.03716784]
[1738943723566,35.63615104,197.72,197.69,0.03716784]
[1738943723760,35.67424026,197.72,197.61,1.6168]
[1738943724060,5.0563,197.69,197.54,3.1718]
[1738943724268,35.63615104,197.68,197.49,35.63615104]
[1738943724464,35.63615104,197.68,197.49,37.27035104]
[1738943724867,35.63615104,197.6,197.48,1.6168]
[1738943725083,40.7315043,197.6,197.48,1.6168]
[1738943725265,40.69475104,197.6,197.48,1.6168]
[1738943725469,35.63615104,197.64,197.49,1.0127095]
[1738943725663,35.63615104,197.6,197.49,1.0127095]
[1738943726171,35.63615104,197.56,197.49,1.0127095]
[1738943726370,35.63615104,197.52,197.49,1.0127095]
[1738943726669,0.03477825,197.56,197.49,1.0127095]
[1738943726670,0.03477825,197.56,197.49,0.14598802]
[1738943727272,7.825e-05,197.56,197.49,0.14598802]
[1738943728070,7.825e-05,197.56,197.52,35.63615104]
[1738943728273,7.825e-05,197.56,197.54,5.0597]
[1738943728667,7.825e-05,197.56,197.52,0.03891115]
[1738943730171,7.825e-05,197.56,197.52,35.67506219]
[1738943730369,7.3,197.85,197.52,324.67506219]
[1738943730569,5.0545,197.76,197.67,5.0565]
[1738943730763,35.63615104,197.84,197.67,35.63615104]
[1738943731066,35.63615104,197.84,197.69,5.0559]
[1738943731370,35.63615104,197.8,197.64,3.2298]
[1738943731576,35.63615104,197.76,197.64,3.2298]
[1738943731970,35.63615104,197.8,197.7,0.03799619]
[1738943732170,0.03426274,197.72,197.7,0.03799619]
[1738943732471,8.9339,197.89,197.7,0.03799619]
[1738943732773,7.3,197.89,197.71,35.63615104]
[1738943733372,7.3,197.89,197.8,5.0532]
[1738943733573,1.5688,197.99,197.71,35.63615104]
[1738943733574,1.5688,197.99,197.79,35.63615104]
[1738943733772,5.0494,197.96,197.8,1.6419]
[1738943734074,9.871e-05,197.91,197.83,35.63615104]
[1738943734273,9.871e-05,197.91,197.9,5.0507]
[1738943734476,35.63615104,198.04,197.87,35.63615104]
[1738943734772,5.0471,198.05,197.95,5.0494]
[1738943735074,35.63615104,198.1,197.87,37.20595104]
[1738943735270,35.63615104,198.04,197.87,37.20595104]
[1738943735474,0.03249748,198.02,197.98,0.03389561]
[1738943735966,35.63615104,198.04,197.87,37.20595104]
[1738943736168,35.63615104,198.04,197.98,0.03287903]
[1738943736377,35.63615104,197.99,197.98,0.03287903]
[1738943736672,35.63615104,197.99,197.83,35.63615104]
[1738943736876,35.63615104,197.99,197.97,0.03265507]
[1738943737072,5.0489,197.98,197.86,5.0515]
[1738943737374,35.63615104,197.95,197.8,1.6419]
[1738943737570,35.63615104,198.03,197.9,0.0381473]
[1738943737773,35.63615104,198.03,197.84,1.6115]
[1738943738076,5.0477,198.02,197.92,5.05]
[1738943738370,35.63615104,198.03,197.86,35.63615104]
[1738943738574,35.63615104,198.07,197.84,1.6115]
[1738943738871,35.63615104,198.11,197.94,35.63615104]
[1738943739069,35.63615104,198.11,197.95,2.65885615]
[1738943739370,35.63615104,198.11,197.96,1.01030511]
[1738943739875,5.0453,198.12,197.97,1.6338]
[1738943740076,111.65254143,198.15,197.98,36.64635409]
[1738943740275,111.65254143,198.15,197.99,1.01015202]
[1738943740467,0.03523397,198.08,198.05,0.03336269]
[1738943740878,111.65254143,198.15,198.05,0.03336269]
[1738943741078,0.03735402,198.08,198.05,0.03336269]
[1738943741276,35.63615104,198.13,198.05,0.03336269]
[1738943741478,0.03861528,198.08,198.05,0.03336269]
[1738943742376,35.63615104,198.21,198.05,0.03336269]
[1738943742575,35.63615104,198.25,198.06,35.63615104]
[1738943742778,5.0419,198.25,198.17,5.0437]
[1738943742976,42.73615104,198.3,198.1,35.63615104]
[1738943743575,35.63615104,198.34,198.18,0.03583065]
[1738943743775,35.63615104,198.34,198.18,35.67198169]
[1738943743972,35.63615104,198.34,198.18,35.63615104]
[1738943744286,35.63615104,198.29,198.11,292.0036]
[1738943744481,35.63615104,198.29,198.11,3.0036]
[1738943744781,35.63615104,198.25,198.11,1.5077]
[1738943744982,35.63615104,198.21,198.18,0.03514107]
[1738943745383,35.63615104,198.21,198.18,0.0027969]
[1738943745679,0.03206726,198.22,198.18,0.0027969]
[1738943747182,0.03206726,198.22,198.12,35.63615104]
[1738943747684,35.63615104,198.29,198.13,1.00943824]
[1738943747876,35.63615104,198.19,198.13,1.00943824]
[1738943748476,35.63615104,198.19,198.14,0.03704669]
[1738943748784,0.03730981,198.18,198.14,0.03704669]
[1738943749181,5.0442,198.16,198.14,0.01444669]
[1738943749376,0.03730981,198.18,198.14,0.01444669]
[1738943749679,5.0444,198.15,198.14,0.01444669]
[1738943749882,35.63615104,198.15,198.03,1.00994798]
[1738943750085,35.63615104,198.1,198.03,1.00994798]
[1738943750585,35.63615104,198.1,197.85,342.96754116]
[1738943750586,35.63615104,198.06,197.85,35.63615104]
[1738943750780,40.68435104,198.0,197.88,5.051]
[1738943750980,35.63615104,197.96,197.89,1.01066248]
[1738943751182,0.03828564,197.97,197.94,0.0345574]
[1738943751581,35.63615104,198.04,197.89,1.01066248]
[1738943752082,35.63615104,198.1,197.94,0.03509057]
[1738943752083,0.03242503,197.97,197.94,0.03509057]
[1738943752584,5.0473,198.04,197.89,1.01066248]
[1738943752777,0.03740195,197.97,197.94,0.03450567]
[1738943753284,35.63615104,197.98,197.94,0.03450567]
[1738943753485,5.08455721,197.97,197.94,0.03450567]
[1738943753780,0.03555721,197.97,197.89,1.01066248]
[1738943753982,35.63615104,197.94,197.89,1.01066248]
[1738943754684,40.68595104,197.94,197.89,1.01066248]
[1738943754880,35.63615104,197.94,197.9,0.03851394]
[1738943755084,6.91555721,197.97,197.9,0.03851394]
[1738943755280,0.03555721,197.97,197.9,0.03851394]
[1738943758286,35.63615104,197.92,197.9,0.03851394]
[1738943758586,35.63615104,197.92,197.78,1.5149]
[1738943758881,35.63615104,197.96,197.79,1.01117346]
[1738943759185,35.63615104,198.0,197.82,35.63615104]
[1738943759886,0.03481087,197.93,197.89,0.03736243]
[1738943761483,35.63615104,197.92,197.89,0.03736243]
[1738943761687,35.63615104,197.92,197.83,1.01096901]
[1738943761987,35.63615104,197.86,197.83,1.01096901]
[1738943762182,35.63615104,197.86,197.7,8.40156686]
[1738943762386,35.63615104,197.82,197.74,55.15334976]
[1738943763090,0.03824925,197.8,197.76,0.03678071]
[1738943763289,4.925e-05,197.8,197.76,0.03678071]
[1738943763586,35.63615104,198.0,197.76,35.63615104]
[1738943763881,40.68435104,198.0,197.91,5.0505]